[Event "Late-Titled-Tuesday-Blitz-April-02-2024"]
[Site "Chess.com"]
[Date "2024.04.02"]
[Round "3"]
[White "ChessBrainiacOnTwitch"]
[Black "Caracal3000"]
[Result "0-1"]
[WhiteElo "2830"]
[BlackElo "2548"]
[TimeControl "180+1"]
[EndTime "14:29:05 PDT"]
[Termination "Caracal3000 won by checkmate"]

1. Nf3 {[%clk 0:03:00.9]} 1... d5 {[%clk 0:03:00.1]} 2. g3 {[%clk 0:02:51.9]}
2... e6 {[%clk 0:03:00.3]} 3. Bg2 {[%clk 0:02:51.3]} 3... Nf6 {[%clk 0:03:01]}
4. O-O {[%clk 0:02:51.5]} 4... Be7 {[%clk 0:03:01.8]} 5. d3 {[%clk 0:02:51.4]}
5... O-O {[%clk 0:03:02.5]} 6. Nbd2 {[%clk 0:02:52.2]} 6... c5 {[%clk
0:03:01.7]} 7. e4 {[%clk 0:02:52.6]} 7... d4 {[%clk 0:02:56.6]} 8. Re1 {[%clk
0:02:50.7]} 8... Nc6 {[%clk 0:02:55.7]} 9. e5 {[%clk 0:02:49.7]} 9... Nd7 {[%clk
0:02:51.4]} 10. Nc4 {[%clk 0:02:42.2]} 10... Qc7 {[%clk 0:02:48.3]} 11. Bf4
{[%clk 0:02:41.1]} 11... b5 {[%clk 0:02:42.4]} 12. Nd6 {[%clk 0:02:39.9]} 12...
Rb8 {[%clk 0:02:27.7]} 13. h4 {[%clk 0:02:38.1]} 13... Ncxe5 {[%clk 0:01:51.4]}
14. Nxf7 {[%clk 0:02:06]} 14... Rxf7 {[%clk 0:01:44.4]} 15. Nxe5 {[%clk
0:02:03.9]} 15... Nxe5 {[%clk 0:01:29.5]} 16. Bxe5 {[%clk 0:02:04.8]} 16... Bd6
{[%clk 0:01:30.1]} 17. Qe2 {[%clk 0:01:40.5]} 17... Rf5 {[%clk 0:01:19.5]} 18.
Bxd6 {[%clk 0:01:31.7]} 18... Qxd6 {[%clk 0:01:20.4]} 19. Bh3 {[%clk 0:01:18.8]}
19... Rf6 {[%clk 0:01:21]} 20. Qe5 {[%clk 0:01:07.6]} 20... Rb6 {[%clk
0:01:20.7]} 21. Qg5 {[%clk 0:01:00.5]} 21... Rg6 {[%clk 0:01:13.6]} 22. Qe5
{[%clk 0:00:58.2]} 22... Bb7 {[%clk 0:01:00.4]} 23. Qxd6 {[%clk 0:00:54.8]}
23... Rxd6 {[%clk 0:01:00.1]} 24. Re5 {[%clk 0:00:55.6]} 24... Bd5 {[%clk
0:00:57.4]} 25. a4 {[%clk 0:00:53.1]} 25... b4 {[%clk 0:00:55.2]} 26. b3 {[%clk
0:00:49.6]} 26... a5 {[%clk 0:00:50.2]} 27. Rae1 {[%clk 0:00:49]} 27... Kf7
{[%clk 0:00:48.2]} 28. Bg2 {[%clk 0:00:49]} 28... Rf6 {[%clk 0:00:27.9]} 29. h5
{[%clk 0:00:40.5]} 29... Bxg2 {[%clk 0:00:16.5]} 30. Kxg2 {[%clk 0:00:41.4]}
30... Rd5 {[%clk 0:00:17.4]} 31. f4 {[%clk 0:00:37.9]} 31... Rxe5 {[%clk
0:00:15]} 32. Rxe5 {[%clk 0:00:38.8]} 32... Rf5 {[%clk 0:00:15.6]} 33. Re1
{[%clk 0:00:16.3]} 33... Rxh5 {[%clk 0:00:15.6]} 34. g4 {[%clk 0:00:17.2]} 34...
Rd5 {[%clk 0:00:14.8]} 35. Kf3 {[%clk 0:00:17.9]} 35... h6 {[%clk 0:00:14.5]}
36. Rh1 {[%clk 0:00:18.5]} 36... Kf6 {[%clk 0:00:14.7]} 37. Ke4 {[%clk
0:00:19.2]} 37... Kg6 {[%clk 0:00:08.1]} 38. Rh2 {[%clk 0:00:16.1]} 38... Kf6
{[%clk 0:00:08.3]} 39. Rh3 {[%clk 0:00:15.6]} 39... Kg6 {[%clk 0:00:08.7]} 40.
Rh4 {[%clk 0:00:14.4]} 40... Kf6 {[%clk 0:00:09.2]} 41. Rh1 {[%clk 0:00:14.9]}
41... Kg6 {[%clk 0:00:09.8]} 42. f5+ {[%clk 0:00:11.5]} 42... Kf6 {[%clk
0:00:10]} 43. Rf1 {[%clk 0:00:09.6]} 43... Re5+ {[%clk 0:00:10]} 44. Kf4 {[%clk
0:00:08.1]} 44... Re2 {[%clk 0:00:10.1]} 45. Kf3 {[%clk 0:00:05.4]} 45... Rxc2
{[%clk 0:00:10]} 46. Ke4 {[%clk 0:00:06.2]} 46... Re2+ {[%clk 0:00:09.4]} 47.
Kf4 {[%clk 0:00:05.8]} 47... Re3 {[%clk 0:00:09.8]} 48. fxe6 {[%clk 0:00:05.7]}
48... Kxe6 {[%clk 0:00:09.7]} 49. Rc1 {[%clk 0:00:05.9]} 49... Kd5 {[%clk
0:00:09.4]} 50. Kf5 {[%clk 0:00:06.5]} 50... Rxd3 {[%clk 0:00:09]} 51. Kg6
{[%clk 0:00:06.4]} 51... Rg3 {[%clk 0:00:09.5]} 52. Kf5 {[%clk 0:00:06]} 52...
Rf3+ {[%clk 0:00:09.5]} 53. Kg6 {[%clk 0:00:06.3]} 53... Rg3 {[%clk 0:00:10]}
54. Kf5 {[%clk 0:00:06.8]} 54... Rxb3 {[%clk 0:00:10.5]} 55. Kg6 {[%clk
0:00:06.9]} 55... Rg3 {[%clk 0:00:10.9]} 56. Kf5 {[%clk 0:00:07.8]} 56... b3
{[%clk 0:00:11.5]} 57. Rb1 {[%clk 0:00:07.6]} 57... c4 {[%clk 0:00:12]} 58. Kf4
{[%clk 0:00:08.5]} 58... Rg2 {[%clk 0:00:12.1]} 59. Kf5 {[%clk 0:00:09.1]} 59...
d3 {[%clk 0:00:11.9]} 60. Kg6 {[%clk 0:00:09.6]} 60... Rxg4+ {[%clk 0:00:11.9]}
61. Kf7 {[%clk 0:00:10.2]} 61... Rg2 {[%clk 0:00:12.5]} 62. Kg8 {[%clk 0:00:10]}
62... Kd4 {[%clk 0:00:12.9]} 63. Rf1 {[%clk 0:00:10.3]} 63... d2 {[%clk
0:00:13.4]} 64. Rf4+ {[%clk 0:00:11]} 64... Kc3 {[%clk 0:00:14]} 65. Rf3+ {[%clk
0:00:11.4]} 65... Kc2 {[%clk 0:00:14.7]} 66. Rf4 {[%clk 0:00:09.3]} 66... d1=N
{[%clk 0:00:14.6]} 67. Rxc4+ {[%clk 0:00:10]} 67... Nc3 {[%clk 0:00:14.8]} 68.
Rc5 {[%clk 0:00:06.4]} 68... b2 {[%clk 0:00:15.3]} 69. Rxa5 {[%clk 0:00:06.6]}
69... b1=Q {[%clk 0:00:15.9]} 70. Ra8 {[%clk 0:00:07.4]} 70... Qb3+ {[%clk
0:00:15.8]} 71. Kh8 {[%clk 0:00:07.7]} 71... Nxa4 {[%clk 0:00:16.4]} 72. Rc8+
{[%clk 0:00:07.6]} 72... Kb2 {[%clk 0:00:16.4]} 73. Rf8 {[%clk 0:00:08.5]} 73...
h5 {[%clk 0:00:15.7]} 74. Rf1 {[%clk 0:00:07.8]} 74... h4 {[%clk 0:00:16.1]} 75.
Rh1 {[%clk 0:00:07.5]} 75... h3 {[%clk 0:00:16.4]} 76. Rf1 {[%clk 0:00:08.1]}
76... h2 {[%clk 0:00:16.8]} 77. Rh1 {[%clk 0:00:08.6]} 77... Qh3+ {[%clk
0:00:16.8]} 78. Kg8 {[%clk 0:00:08.6]} 78... Rg1 {[%clk 0:00:17.4]} 79. Rxh2+
{[%clk 0:00:06.3]} 79... Qxh2 {[%clk 0:00:16.9]} 80. Kf7 {[%clk 0:00:07.2]}
80... g5 {[%clk 0:00:16.8]} 81. Kg8 {[%clk 0:00:08.1]} 81... g4 {[%clk
0:00:17.4]} 82. Kg7 {[%clk 0:00:09]} 82... g3 {[%clk 0:00:18.3]} 83. Kf8 {[%clk
0:00:09.9]} 83... g2 {[%clk 0:00:19.2]} 84. Ke7 {[%clk 0:00:10.8]} 84... Re1+
{[%clk 0:00:19.3]} 85. Kd7 {[%clk 0:00:11.7]} 85... Qg1 {[%clk 0:00:19.4]} 86.
Kc6 {[%clk 0:00:12.6]} 86... Qf1 {[%clk 0:00:19.9]} 87. Kb7 {[%clk 0:00:12.9]}
87... Nc3 {[%clk 0:00:20.3]} 88. Ka7 {[%clk 0:00:13.3]} 88... Nb1 {[%clk
0:00:21.2]} 89. Kb6 {[%clk 0:00:14.2]} 89... g1=Q+ {[%clk 0:00:21.5]} 90. Ka5
{[%clk 0:00:15.1]} 90... Qf5+ {[%clk 0:00:20.9]} 91. Ka4 {[%clk 0:00:16]} 91...
Qgg4# {[%clk 0:00:20.2]} 0-1

[Event "Late-Titled-Tuesday-Blitz-April-02-2024"]
[Site "Chess.com"]
[Date "2024.04.02"]
[Round "3"]
[White "AllStarShark"]
[Black "KVAIDAN"]
[Result "1-0"]
[WhiteElo "2528"]
[BlackElo "2297"]
[TimeControl "180+1"]
[EndTime "14:29:06 PDT"]
[Termination "AllStarShark won by checkmate"]

1. c4 {[%clk 0:03:00.9]} 1... f5 {[%clk 0:02:47]} 2. g3 {[%clk 0:02:58.9]} 2...
Nf6 {[%clk 0:02:47.9]} 3. Bg2 {[%clk 0:02:58.5]} 3... d6 {[%clk 0:02:47]} 4. Nc3
{[%clk 0:02:57]} 4... e5 {[%clk 0:02:47.3]} 5. d3 {[%clk 0:02:56.9]} 5... Be7
{[%clk 0:02:48.2]} 6. Nf3 {[%clk 0:02:55.7]} 6... O-O {[%clk 0:02:48.6]} 7. O-O
{[%clk 0:02:55.6]} 7... Nc6 {[%clk 0:02:49.5]} 8. Rb1 {[%clk 0:02:53.9]} 8...
Qe8 {[%clk 0:02:49.9]} 9. b4 {[%clk 0:02:53.3]} 9... Qh5 {[%clk 0:02:50.5]} 10.
e3 {[%clk 0:02:48.4]} 10... f4 {[%clk 0:02:49.1]} 11. Nd2 {[%clk 0:02:03.8]}
11... Bg4 {[%clk 0:02:42.2]} 12. f3 {[%clk 0:01:51.9]} 12... fxg3 {[%clk
0:02:42.5]} 13. hxg3 {[%clk 0:01:49.9]} 13... Bh3 {[%clk 0:02:41.4]} 14. Nde4
{[%clk 0:01:40.3]} 14... Nxe4 {[%clk 0:02:36.3]} 15. Nxe4 {[%clk 0:01:38.2]}
15... Bd7 {[%clk 0:02:33.1]} 16. g4 {[%clk 0:01:27.9]} 16... Qg6 {[%clk
0:02:29.4]} 17. b5 {[%clk 0:01:24]} 17... Nd8 {[%clk 0:02:29]} 18. a4 {[%clk
0:01:21.1]} 18... Ne6 {[%clk 0:02:29]} 19. Ba3 {[%clk 0:01:19.7]} 19... Ng5
{[%clk 0:02:27.8]} 20. Qe2 {[%clk 0:01:10.7]} 20... Nxe4 {[%clk 0:02:25.6]} 21.
dxe4 {[%clk 0:01:11.2]} 21... a6 {[%clk 0:02:18.6]} 22. b6 {[%clk 0:01:06]}
22... cxb6 {[%clk 0:02:09.7]} 23. Rxb6 {[%clk 0:01:06.9]} 23... Bxa4 {[%clk
0:02:09.3]} 24. Rxb7 {[%clk 0:01:03.4]} 24... Bd8 {[%clk 0:02:05.5]} 25. Qd3
{[%clk 0:00:59.2]} 25... Bc6 {[%clk 0:02:02.5]} 26. Rb2 {[%clk 0:00:51.4]} 26...
Bc7 {[%clk 0:02:00.9]} 27. Rd1 {[%clk 0:00:50.3]} 27... Rad8 {[%clk 0:01:55.2]}
28. Rbd2 {[%clk 0:00:47]} 28... h5 {[%clk 0:01:46.3]} 29. gxh5 {[%clk 0:00:41]}
29... Qxh5 {[%clk 0:01:45.9]} 30. c5 {[%clk 0:00:38.5]} 30... Bb5 {[%clk
0:01:36]} 31. Qb3+ {[%clk 0:00:38.2]} 31... Kh8 {[%clk 0:01:34.7]} 32. cxd6
{[%clk 0:00:38]} 32... Ba5 {[%clk 0:01:33.6]} 33. Bb4 {[%clk 0:00:20.3]} 33...
Bb6 {[%clk 0:01:33.1]} 34. d7 {[%clk 0:00:18.4]} 34... Qg5 {[%clk 0:01:16.8]}
35. Bxf8 {[%clk 0:00:16]} 35... Bxe3+ {[%clk 0:01:16.8]} 36. Kh2 {[%clk
0:00:12.3]} 36... Qh4+ {[%clk 0:01:12.8]} 37. Bh3 {[%clk 0:00:12.5]} 37... Bf4+
{[%clk 0:01:13.2]} 38. Kg2 {[%clk 0:00:11.7]} 38... Qg3+ {[%clk 0:01:13.2]} 39.
Kh1 {[%clk 0:00:10]} 39... Qxh3+ {[%clk 0:01:12.8]} 40. Kg1 {[%clk 0:00:10.4]}
40... Bxd2 {[%clk 0:01:05.1]} 41. Rxd2 {[%clk 0:00:08.7]} 41... Qg3+ {[%clk
0:01:02.5]} 42. Rg2 {[%clk 0:00:07.9]} 42... Qe1+ {[%clk 0:01:00.1]} 43. Kh2
{[%clk 0:00:08.2]} 43... Rxf8 {[%clk 0:00:46.1]} 44. Qe6 {[%clk 0:00:05.8]}
44... Qd2 {[%clk 0:00:25.7]} 45. Qh3+ {[%clk 0:00:05.4]} 45... Qh6 {[%clk
0:00:24.5]} 46. Qxh6+ {[%clk 0:00:04.6]} 46... gxh6 {[%clk 0:00:24.6]} 47. Rg6
{[%clk 0:00:04.5]} 47... Bxd7 {[%clk 0:00:22.2]} 48. Rxh6+ {[%clk 0:00:04.4]}
48... Kg7 {[%clk 0:00:22.3]} 49. Rxa6 {[%clk 0:00:05]} 49... Rf7 {[%clk
0:00:22.3]} 50. Kg3 {[%clk 0:00:05.1]} 50... Kf8 {[%clk 0:00:21.4]} 51. Ra5
{[%clk 0:00:05.3]} 51... Re7 {[%clk 0:00:20.7]} 52. f4 {[%clk 0:00:05.5]} 52...
exf4+ {[%clk 0:00:19.7]} 53. Kxf4 {[%clk 0:00:06.4]} 53... Bc6 {[%clk 0:00:20]}
54. e5 {[%clk 0:00:06.3]} 54... Kf7 {[%clk 0:00:19.8]} 55. Ra6 {[%clk 0:00:06]}
55... Rc7 {[%clk 0:00:20.1]} 56. Rb6 {[%clk 0:00:06]} 56... Ke6 {[%clk
0:00:19.3]} 57. Ra6 {[%clk 0:00:05.9]} 57... Rf7+ {[%clk 0:00:19.3]} 58. Kg5
{[%clk 0:00:06.1]} 58... Kd5 {[%clk 0:00:19.5]} 59. Ra5+ {[%clk 0:00:05.7]}
59... Ke4 {[%clk 0:00:18]} 60. e6 {[%clk 0:00:05.4]} 60... Re7 {[%clk 0:00:18]}
61. Kf6 {[%clk 0:00:05.8]} 61... Re8 {[%clk 0:00:18.6]} 62. e7 {[%clk
0:00:05.6]} 62... Kd4 {[%clk 0:00:18.2]} 63. Ra6 {[%clk 0:00:05.1]} 63... Bb5
{[%clk 0:00:18.4]} 64. Rd6+ {[%clk 0:00:05.2]} 64... Kc5 {[%clk 0:00:18.6]} 65.
Rd8 {[%clk 0:00:05.7]} 65... Bc6 {[%clk 0:00:16.6]} 66. Kf7 {[%clk 0:00:05]}
66... Rxe7+ {[%clk 0:00:10.9]} 67. Kxe7 {[%clk 0:00:04.8]} 67... Bd5 {[%clk
0:00:11.4]} 68. Kf6 {[%clk 0:00:04.4]} 68... Bc6 {[%clk 0:00:11.8]} 69. Ke5
{[%clk 0:00:04.9]} 69... Kb6 {[%clk 0:00:11.6]} 70. Kd6 {[%clk 0:00:04.8]} 70...
Bb7 {[%clk 0:00:12]} 71. Rb8 {[%clk 0:00:04.8]} 71... Ka7 {[%clk 0:00:11.9]} 72.
Kc7 {[%clk 0:00:05.1]} 72... Be4 {[%clk 0:00:11]} 73. Rb4 {[%clk 0:00:04.9]}
73... Bc2 {[%clk 0:00:08.5]} 74. Rb2 {[%clk 0:00:04.8]} 74... Bd3 {[%clk
0:00:07.4]} 75. Ra2+ {[%clk 0:00:04.8]} 75... Ba6 {[%clk 0:00:07.9]} 76. Ra3
{[%clk 0:00:05.5]} 76... Ka8 {[%clk 0:00:07.8]} 77. Rxa6# {[%clk 0:00:06.4]} 1-0

[Event "Late-Titled-Tuesday-Blitz-April-02-2024"]
[Site "Chess.com"]
[Date "2024.04.02"]
[Round "3"]
[White "Carlos-Godoy"]
[Black "ellennilssen"]
[Result "0-1"]
[WhiteElo "2046"]
[BlackElo "2324"]
[TimeControl "180+1"]
[EndTime "14:29:06 PDT"]
[Termination "ellennilssen won on time"]

1. e4 {[%clk 0:03:00.9]} 1... c6 {[%clk 0:02:59.1]} 2. c4 {[%clk 0:02:59.2]}
2... d5 {[%clk 0:02:58.8]} 3. exd5 {[%clk 0:02:59.1]} 3... cxd5 {[%clk
0:02:59.7]} 4. cxd5 {[%clk 0:02:59.1]} 4... Nf6 {[%clk 0:03:00.3]} 5. Qa4+
{[%clk 0:02:59.1]} 5... Nbd7 {[%clk 0:03:00.2]} 6. Nc3 {[%clk 0:02:57.7]} 6...
g6 {[%clk 0:03:00.1]} 7. Nf3 {[%clk 0:02:57.1]} 7... Bg7 {[%clk 0:02:59.9]} 8.
Be2 {[%clk 0:02:37.3]} 8... O-O {[%clk 0:02:57.9]} 9. O-O {[%clk 0:02:37.8]}
9... Nb6 {[%clk 0:02:56.4]} 10. Qb3 {[%clk 0:02:38.4]} 10... Bf5 {[%clk
0:02:50.7]} 11. Nd4 {[%clk 0:02:35.1]} 11... Be4 {[%clk 0:02:49.6]} 12. Bf3
{[%clk 0:02:34.4]} 12... Bxf3 {[%clk 0:02:49.1]} 13. Nxf3 {[%clk 0:02:34.8]}
13... Nfxd5 {[%clk 0:02:46.4]} 14. Nxd5 {[%clk 0:02:34.7]} 14... Qxd5 {[%clk
0:02:47.3]} 15. d4 {[%clk 0:02:32.5]} 15... Rfd8 {[%clk 0:02:45.1]} 16. Be3
{[%clk 0:02:32.1]} 16... Rac8 {[%clk 0:02:43.9]} 17. Rac1 {[%clk 0:02:28.6]}
17... Nc4 {[%clk 0:02:31.7]} 18. Rc3 {[%clk 0:02:04.8]} 18... Nxe3 {[%clk
0:02:25.1]} 19. Rxe3 {[%clk 0:02:03.5]} 19... e6 {[%clk 0:02:21.4]} 20. Ne5
{[%clk 0:01:50.3]} 20... Qxd4 {[%clk 0:02:06.3]} 21. Nxf7 {[%clk 0:01:42.3]}
21... Rd7 {[%clk 0:01:28.3]} 22. Qxe6 {[%clk 0:01:35.8]} 22... Rxf7 {[%clk
0:01:17.5]} 23. Qxc8+ {[%clk 0:01:31.9]} 23... Bf8 {[%clk 0:01:18]} 24. Qe6
{[%clk 0:01:21.1]} 24... Kg7 {[%clk 0:01:15.4]} 25. Qe5+ {[%clk 0:01:18.3]}
25... Qxe5 {[%clk 0:01:13.9]} 26. Rxe5 {[%clk 0:01:18.9]} 26... Bd6 {[%clk
0:01:13.6]} 27. Rd5 {[%clk 0:01:18.7]} 27... Bc7 {[%clk 0:01:11.8]} 28. g3
{[%clk 0:01:18]} 28... Bb6 {[%clk 0:01:11.5]} 29. Kg2 {[%clk 0:01:15.1]} 29...
Rc7 {[%clk 0:01:08.4]} 30. Rfd1 {[%clk 0:01:12.1]} 30... Rc2 {[%clk 0:00:56.5]}
31. R1d2 {[%clk 0:01:11.6]} 31... Rc1 {[%clk 0:00:56.4]} 32. Rd7+ {[%clk
0:01:09.2]} 32... Kf6 {[%clk 0:00:56.1]} 33. Rxb7 {[%clk 0:01:09.5]} 33... h5
{[%clk 0:00:55.8]} 34. h4 {[%clk 0:01:07.9]} 34... Bc5 {[%clk 0:00:46.3]} 35. b4
{[%clk 0:01:03.1]} 35... Bb6 {[%clk 0:00:44.9]} 36. a4 {[%clk 0:01:01.5]} 36...
Rc4 {[%clk 0:00:39.7]} 37. a5 {[%clk 0:01:00.4]} 37... Bd4 {[%clk 0:00:39.7]}
38. b5 {[%clk 0:00:55.4]} 38... Rb4 {[%clk 0:00:33.9]} 39. b6 {[%clk 0:00:45.9]}
39... axb6 {[%clk 0:00:33.6]} 40. axb6 {[%clk 0:00:46]} 40... Kf5 {[%clk
0:00:25.4]} 41. Rb8 {[%clk 0:00:33.8]} 41... Bxb6 {[%clk 0:00:19.6]} 42. Rd6
{[%clk 0:00:33.6]} 42... Bc5 {[%clk 0:00:18.4]} 43. Rb7 {[%clk 0:00:28.4]} 43...
Bxd6 {[%clk 0:00:17.7]} 44. Rd7 {[%clk 0:00:24.1]} 44... Be5 {[%clk 0:00:17]}
45. Rd5 {[%clk 0:00:23.6]} 45... Ke6 {[%clk 0:00:16.5]} 46. Ra5 {[%clk
0:00:22.5]} 46... Rb2 {[%clk 0:00:16.8]} 47. Ra6+ {[%clk 0:00:21.8]} 47... Kf7
{[%clk 0:00:16.2]} 48. Ra7+ {[%clk 0:00:20.9]} 48... Kg8 {[%clk 0:00:15.1]} 49.
Ra4 {[%clk 0:00:21.3]} 49... Bc7 {[%clk 0:00:13.7]} 50. Rc4 {[%clk 0:00:17.2]}
50... Bb6 {[%clk 0:00:13.3]} 51. Rf4 {[%clk 0:00:17.7]} 51... Kg7 {[%clk
0:00:13]} 52. Rf3 {[%clk 0:00:15.3]} 52... Kh6 {[%clk 0:00:12.9]} 53. Rf4 {[%clk
0:00:14.4]} 53... Be3 {[%clk 0:00:12.5]} 54. Rf3 {[%clk 0:00:13.6]} 54... Bb6
{[%clk 0:00:13.1]} 55. Rf4 {[%clk 0:00:13.2]} 55... g5 {[%clk 0:00:13.2]} 56.
hxg5+ {[%clk 0:00:10.3]} 56... Kxg5 {[%clk 0:00:14.1]} 57. Rf3 {[%clk
0:00:10.4]} 57... Bc7 {[%clk 0:00:09.3]} 58. Rf7 {[%clk 0:00:09.5]} 58... Bb6
{[%clk 0:00:08.6]} 59. Rf3 {[%clk 0:00:08.9]} 59... h4 {[%clk 0:00:08]} 60.
gxh4+ {[%clk 0:00:07.7]} 60... Kxh4 {[%clk 0:00:08.9]} 61. Rf4+ {[%clk
0:00:07.8]} 61... Kg5 {[%clk 0:00:08.5]} 62. Rf3 {[%clk 0:00:08.1]} 62... Kg4
{[%clk 0:00:09.1]} 63. Rf8 {[%clk 0:00:07.1]} 63... Kg5 {[%clk 0:00:06.9]} 64.
Rg8+ {[%clk 0:00:07]} 64... Kf6 {[%clk 0:00:06.6]} 65. Rf8+ {[%clk 0:00:07.1]}
65... Ke5 {[%clk 0:00:06.7]} 66. Re8+ {[%clk 0:00:06.4]} 66... Kd4 {[%clk
0:00:06.4]} 67. Rf8 {[%clk 0:00:05.5]} 67... Kd3 {[%clk 0:00:06.6]} 68. Rf3+
{[%clk 0:00:05]} 68... Ke2 {[%clk 0:00:06.6]} 69. Rf8 {[%clk 0:00:02.8]} 69...
Ke1 {[%clk 0:00:07.1]} 70. Re8+ {[%clk 0:00:02.8]} 70... Kd1 {[%clk 0:00:06.7]}
71. Rf8 {[%clk 0:00:02.8]} 71... Re2 {[%clk 0:00:07.3]} 72. Rf3 {[%clk
0:00:02.8]} 72... Ke1 {[%clk 0:00:07.6]} 73. Rf8 {[%clk 0:00:02.1]} 73... Bxf2
{[%clk 0:00:08]} 0-1

[Event "Late-Titled-Tuesday-Blitz-April-02-2024"]
[Site "Chess.com"]
[Date "2024.04.02"]
[Round "3"]
[White "DeArron_Fox"]
[Black "carlsenCamacho"]
[Result "1-0"]
[WhiteElo "2531"]
[BlackElo "2298"]
[TimeControl "180+1"]
[EndTime "14:29:18 PDT"]
[Termination "DeArron_Fox won by checkmate"]

1. d4 {[%clk 0:03:00.9]} 1... Nf6 {[%clk 0:02:40.5]} 2. c4 {[%clk 0:02:58.8]}
2... c5 {[%clk 0:02:38.8]} 3. d5 {[%clk 0:02:58.4]} 3... b5 {[%clk 0:02:38.5]}
4. cxb5 {[%clk 0:02:59.3]} 4... a6 {[%clk 0:02:38.9]} 5. bxa6 {[%clk 0:03:00.2]}
5... g6 {[%clk 0:02:39.2]} 6. Nc3 {[%clk 0:02:59.5]} 6... Bg7 {[%clk 0:02:39.7]}
7. e4 {[%clk 0:02:59.5]} 7... O-O {[%clk 0:02:40.3]} 8. a7 {[%clk 0:02:58.9]}
8... Rxa7 {[%clk 0:02:40.2]} 9. Nf3 {[%clk 0:02:59.5]} 9... Qa5 {[%clk
0:02:38.6]} 10. Bd3 {[%clk 0:01:56]} 10... Nxd5 {[%clk 0:02:20.6]} 11. Bd2
{[%clk 0:01:21.1]} 11... Nxc3 {[%clk 0:02:02.7]} 12. bxc3 {[%clk 0:00:37.8]}
12... Bxc3 {[%clk 0:01:31.7]} 13. O-O {[%clk 0:00:37.4]} 13... Bxd2 {[%clk
0:01:09.2]} 14. Nxd2 {[%clk 0:00:38.3]} 14... Ba6 {[%clk 0:01:08.8]} 15. Bxa6
{[%clk 0:00:21.4]} 15... Qxa6 {[%clk 0:01:04.9]} 16. e5 {[%clk 0:00:16.2]} 16...
Nc6 {[%clk 0:00:54.4]} 17. f4 {[%clk 0:00:15.6]} 17... Qd3 {[%clk 0:00:51.1]}
18. Rf3 {[%clk 0:00:13.5]} 18... Qd4+ {[%clk 0:00:45.7]} 19. Kh1 {[%clk
0:00:13.9]} 19... d5 {[%clk 0:00:45.2]} 20. exd6 {[%clk 0:00:07]} 20... exd6
{[%clk 0:00:42.5]} 21. f5 {[%clk 0:00:02.5]} 21... Ne5 {[%clk 0:00:31.9]} 22.
Rh3 {[%clk 0:00:02.5]} 22... Rb7 {[%clk 0:00:18.5]} 23. Nf3 {[%clk 0:00:02.4]}
23... Qxd1+ {[%clk 0:00:17.7]} 24. Rxd1 {[%clk 0:00:03.3]} 24... Nxf3 {[%clk
0:00:18]} 25. Rxf3 {[%clk 0:00:04.2]} 25... Rd8 {[%clk 0:00:17.7]} 26. fxg6
{[%clk 0:00:04.2]} 26... hxg6 {[%clk 0:00:17.6]} 27. h4 {[%clk 0:00:03.1]} 27...
Kf8 {[%clk 0:00:17.5]} 28. Rfd3 {[%clk 0:00:02.3]} 28... Ke7 {[%clk 0:00:17.3]}
29. Re3+ {[%clk 0:00:02.8]} 29... Kd7 {[%clk 0:00:17.6]} 30. Rf3 {[%clk
0:00:02.9]} 30... Kc6 {[%clk 0:00:17.9]} 31. Rf6 {[%clk 0:00:02.4]} 31... Rb2
{[%clk 0:00:17.2]} 32. Rxf7 {[%clk 0:00:02]} 32... Rxa2 {[%clk 0:00:17.3]} 33.
Rf6 {[%clk 0:00:02.6]} 33... Rh8 {[%clk 0:00:15.9]} 34. Rdxd6+ {[%clk
0:00:01.9]} 34... Kb5 {[%clk 0:00:16.1]} 35. Rf4 {[%clk 0:00:02.6]} 35... Ra4
{[%clk 0:00:14.6]} 36. Rxa4 {[%clk 0:00:02.1]} 36... Kxa4 {[%clk 0:00:15.5]} 37.
Rxg6 {[%clk 0:00:02.7]} 37... Rxh4+ {[%clk 0:00:15.4]} 38. Kg1 {[%clk
0:00:03.6]} 38... c4 {[%clk 0:00:15.7]} 39. Rc6 {[%clk 0:00:02.8]} 39... Kb3
{[%clk 0:00:16.1]} 40. Kf2 {[%clk 0:00:02.2]} 40... Rg4 {[%clk 0:00:16.2]} 41.
Kf3 {[%clk 0:00:02.2]} 41... Rg8 {[%clk 0:00:15.9]} 42. g4 {[%clk 0:00:02.7]}
42... c3 {[%clk 0:00:16.8]} 43. g5 {[%clk 0:00:03]} 43... c2 {[%clk 0:00:17.2]}
44. Kf4 {[%clk 0:00:02.5]} 44... Kb2 {[%clk 0:00:15.6]} 45. Kf5 {[%clk 0:00:03]}
45... Rf8+ {[%clk 0:00:15.9]} 46. Ke6 {[%clk 0:00:02.4]} 46... Rf3 {[%clk
0:00:16.3]} 47. Rxc2+ {[%clk 0:00:02.7]} 47... Kxc2 {[%clk 0:00:16.3]} 48. g6
{[%clk 0:00:03.6]} 48... Kd3 {[%clk 0:00:16.6]} 49. g7 {[%clk 0:00:03.6]} 49...
Re3+ {[%clk 0:00:17.1]} 50. Kf7 {[%clk 0:00:04]} 50... Rf3+ {[%clk 0:00:17.6]}
51. Ke7 {[%clk 0:00:04.4]} 51... Rg3 {[%clk 0:00:17.4]} 52. Kf7 {[%clk
0:00:04.9]} 52... Ke4 {[%clk 0:00:18.3]} 53. g8=Q {[%clk 0:00:04.9]} 53... Rf3+
{[%clk 0:00:19.2]} 54. Ke7 {[%clk 0:00:04.7]} 54... Rf5 {[%clk 0:00:19.2]} 55.
Qg6 {[%clk 0:00:04.1]} 55... Kf4 {[%clk 0:00:18.2]} 56. Kd6 {[%clk 0:00:03.1]}
56... Re5 {[%clk 0:00:17.4]} 57. Qh6+ {[%clk 0:00:02.7]} 57... Rg5 {[%clk
0:00:17.2]} 58. Ke6 {[%clk 0:00:02.2]} 58... Kg4 {[%clk 0:00:17.4]} 59. Qf6
{[%clk 0:00:02.1]} 59... Kh5 {[%clk 0:00:15.6]} 60. Qf4 {[%clk 0:00:01.9]} 60...
Rg4 {[%clk 0:00:14.1]} 61. Qf5+ {[%clk 0:00:02.1]} 61... Rg5 {[%clk 0:00:13]}
62. Qh3+ {[%clk 0:00:02.2]} 62... Kg6 {[%clk 0:00:13]} 63. Ke7 {[%clk
0:00:02.4]} 63... Rf5 {[%clk 0:00:11.1]} 64. Ke6 {[%clk 0:00:02.3]} 64... Rg5
{[%clk 0:00:11.2]} 65. Qd3+ {[%clk 0:00:02.8]} 65... Kg7 {[%clk 0:00:08.7]} 66.
Qe4 {[%clk 0:00:02.7]} 66... Rg6+ {[%clk 0:00:07.8]} 67. Ke7 {[%clk 0:00:03]}
67... Rg5 {[%clk 0:00:06.9]} 68. Qf4 {[%clk 0:00:03.3]} 68... Rg6 {[%clk
0:00:05.3]} 69. Qf8+ {[%clk 0:00:02.9]} 69... Kh7 {[%clk 0:00:05.2]} 70. Qf4
{[%clk 0:00:02.2]} 70... Kg7 {[%clk 0:00:04.8]} 71. Qh4 {[%clk 0:00:02.6]} 71...
Kg8 {[%clk 0:00:01.5]} 72. Ke8 {[%clk 0:00:02.2]} 72... Kg7 {[%clk 0:00:01.9]}
73. Ke7 {[%clk 0:00:02.1]} 73... Kg8 {[%clk 0:00:02.3]} 74. Qh5 {[%clk 0:00:02]}
74... Kg7 {[%clk 0:00:03.2]} 75. Qf5 {[%clk 0:00:02.1]} 75... Kh7 {[%clk
0:00:03]} 76. Kf7 {[%clk 0:00:01.8]} 76... Kh8 {[%clk 0:00:03.9]} 77. Kxg6
{[%clk 0:00:01.7]} 77... Kg8 {[%clk 0:00:03.8]} 78. Qf7+ {[%clk 0:00:02.6]}
78... Kh8 {[%clk 0:00:04.3]} 79. Qf8# {[%clk 0:00:03.5]} 1-0